[Event "*** SCC Grand Prix: Titled Tuesday Blitz"]
[Site "Chess.com"]
[Date "2020.09.29"]
[Round "5"]
[White "ARTHURMOTIVATOR"]
[Black "SergioGarciaFuentes"]
[Result "1-0"]
[WhiteElo "2355"]
[BlackElo "2176"]
[TimeControl "180+1"]
[EndTime "10:54:50 PDT"]
[Termination "ARTHURMOTIVATOR won on time"]

1. e4 {[%clk 0:03:00.9]} 1... e5 {[%clk 0:02:57]} 2. Nc3 {[%clk 0:02:59.9]} 2...
Nf6 {[%clk 0:02:53.2]} 3. g3 {[%clk 0:03:00]} 3... Bc5 {[%clk 0:02:15.9]} 4. Bg2
{[%clk 0:02:58.8]} 4... O-O {[%clk 0:02:07.6]} 5. Nge2 {[%clk 0:02:56.7]} 5...
Nc6 {[%clk 0:02:08]} 6. O-O {[%clk 0:02:56.6]} 6... Re8 {[%clk 0:01:38.2]} 7. d3
{[%clk 0:02:55.8]} 7... h6 {[%clk 0:01:38.1]} 8. h3 {[%clk 0:02:53.5]} 8... Nd4
{[%clk 0:01:36]} 9. Kh2 {[%clk 0:02:41.6]} 9... c6 {[%clk 0:01:31.8]} 10. Nxd4
{[%clk 0:02:03.3]} 10... Bxd4 {[%clk 0:01:15.9]} 11. Be3 {[%clk 0:01:56.6]}
11... d5 {[%clk 0:00:47.4]} 12. exd5 {[%clk 0:01:52.6]} 12... Bxe3 {[%clk
0:00:34.5]} 13. fxe3 {[%clk 0:01:52]} 13... Nxd5 {[%clk 0:00:34]} 14. Qf3 {[%clk
0:01:45.5]} 14... Be6 {[%clk 0:00:32.4]} 15. Ne4 {[%clk 0:01:42.4]} 15... Qe7
{[%clk 0:00:28.4]} 16. g4 {[%clk 0:01:30.7]} 16... Rf8 {[%clk 0:00:27.5]} 17.
Ng3 {[%clk 0:01:28.3]} 17... Qc7 {[%clk 0:00:24.9]} 18. c4 {[%clk 0:01:15.1]}
18... Ne7 {[%clk 0:00:18.9]} 19. Nf5 {[%clk 0:01:08.2]} 19... Bxf5 {[%clk
0:00:09]} 20. gxf5 {[%clk 0:01:07.6]} 20... e4+ {[%clk 0:00:08.2]} 21. Qg3
{[%clk 0:01:00.9]} 21... Qxg3+ {[%clk 0:00:08.7]} 22. Kxg3 {[%clk 0:01:01.4]}
22... exd3 {[%clk 0:00:09.3]} 23. Rad1 {[%clk 0:00:56.2]} 23... Rad8 {[%clk
0:00:08.8]} 24. Rd2 {[%clk 0:00:53.7]} 24... f6 {[%clk 0:00:05.8]} 25. e4 {[%clk
0:00:27.6]} 25... Rd4 {[%clk 0:00:05.4]} 26. b3 {[%clk 0:00:27.1]} 26... Rfd8
{[%clk 0:00:05.8]} 27. Rfd1 {[%clk 0:00:27.1]} 27... c5 {[%clk 0:00:06]} 28. Kf2
{[%clk 0:00:25.7]} 28... Nc6 {[%clk 0:00:06.3]} 29. Ke3 {[%clk 0:00:25]} 29...
Ne5 {[%clk 0:00:03.7]} 30. Bf1 {[%clk 0:00:24.8]} 30... Kf8 {[%clk 0:00:01.1]}
31. Bxd3 {[%clk 0:00:24.1]} 1-0

[Event "*** SCC Grand Prix: Titled Tuesday Blitz"]
[Site "Chess.com"]
[Date "2020.09.29"]
[Round "5"]
[White "CheckThis4"]
[Black "Supernotar"]
[Result "1-0"]
[WhiteElo "2619"]
[BlackElo "2789"]
[TimeControl "180+1"]
[EndTime "10:54:56 PDT"]
[Termination "CheckThis4 won by checkmate"]

1. e4 {[%clk 0:03:00.9]} 1... c6 {[%clk 0:02:58.9]} 2. Nf3 {[%clk 0:02:57]} 2...
d5 {[%clk 0:02:58.9]} 3. Nc3 {[%clk 0:02:57.3]} 3... Bg4 {[%clk 0:02:58.5]} 4.
h3 {[%clk 0:02:57.3]} 4... Bxf3 {[%clk 0:02:58.2]} 5. Qxf3 {[%clk 0:02:58.2]}
5... e6 {[%clk 0:02:56.8]} 6. d3 {[%clk 0:02:56.7]} 6... Nf6 {[%clk 0:02:56.7]}
7. Bd2 {[%clk 0:02:54]} 7... Qb6 {[%clk 0:02:56.1]} 8. O-O-O {[%clk 0:02:52.8]}
8... d4 {[%clk 0:02:55.7]} 9. Ne2 {[%clk 0:02:47.9]} 9... c5 {[%clk 0:02:55.7]}
10. g4 {[%clk 0:02:44.6]} 10... Nc6 {[%clk 0:02:54.6]} 11. g5 {[%clk 0:02:44.2]}
11... Nd7 {[%clk 0:02:53.6]} 12. Qg3 {[%clk 0:02:36]} 12... c4 {[%clk
0:02:51.3]} 13. dxc4 {[%clk 0:02:32.3]} 13... Nc5 {[%clk 0:02:51.4]} 14. Bg2
{[%clk 0:02:22.7]} 14... O-O-O {[%clk 0:02:42.9]} 15. Nf4 {[%clk 0:02:13.7]}
15... d3 {[%clk 0:02:33.6]} 16. Nxd3 {[%clk 0:02:04.7]} 16... Rxd3 {[%clk
0:02:20.6]} 17. cxd3 {[%clk 0:02:03.8]} 17... Na4 {[%clk 0:02:14.6]} 18. Bc3
{[%clk 0:01:24.2]} 18... Nxc3 {[%clk 0:01:15.7]} 19. bxc3 {[%clk 0:01:25.1]}
19... Ba3+ {[%clk 0:01:15.3]} 20. Kd2 {[%clk 0:01:25.1]} 20... Qb2+ {[%clk
0:01:14.2]} 21. Ke1 {[%clk 0:01:25.1]} 21... Qxc3+ {[%clk 0:01:00.6]} 22. Kf1
{[%clk 0:01:23.9]} 22... Rd8 {[%clk 0:00:55.1]} 23. e5 {[%clk 0:01:16.1]} 23...
Nd4 {[%clk 0:00:35]} 24. Be4 {[%clk 0:01:08.9]} 24... Bc5 {[%clk 0:00:29]} 25.
Kg2 {[%clk 0:01:06.9]} 25... Ne2 {[%clk 0:00:12.9]} 26. Qf3 {[%clk 0:00:58.5]}
26... Nd4 {[%clk 0:00:13]} 27. Qxf7 {[%clk 0:00:54.5]} 27... Rd7 {[%clk
0:00:11.5]} 28. Qe8+ {[%clk 0:00:51.3]} 28... Kc7 {[%clk 0:00:10.4]} 29. Bxb7
{[%clk 0:00:44.8]} 29... Qc2 {[%clk 0:00:04.3]} 30. Qc8+ {[%clk 0:00:42.1]}
30... Kb6 {[%clk 0:00:04.6]} 31. Rb1+ {[%clk 0:00:40.7]} 31... Ka5 {[%clk
0:00:04.5]} 32. Qxd7 {[%clk 0:00:36.3]} 32... Nc6 {[%clk 0:00:04.6]} 33. Qc7+
{[%clk 0:00:32.6]} 33... Ka4 {[%clk 0:00:04]} 34. Qxc6+ {[%clk 0:00:31]} 34...
Ka3 {[%clk 0:00:03.4]} 35. Qa6+ {[%clk 0:00:30.4]} 35... Qa4 {[%clk 0:00:02.2]}
36. Rb3+ {[%clk 0:00:29.5]} 36... Kxa2 {[%clk 0:00:02.5]} 37. Qxa4+ {[%clk
0:00:29.6]} 37... Ba3 {[%clk 0:00:03.4]} 38. Qxa3# {[%clk 0:00:29.9]} 1-0

[Event "*** SCC Grand Prix: Titled Tuesday Blitz"]
[Site "Chess.com"]
[Date "2020.09.29"]
[Round "5"]
[White "JiiHart"]
[Black "Snowflake"]
[Result "0-1"]
[WhiteElo "2063"]
[BlackElo "2472"]
[TimeControl "180+1"]
[EndTime "10:54:56 PDT"]
[Termination "Snowflake won on time"]

1. e4 {[%clk 0:03:00.9]} 1... e6 {[%clk 0:02:59.5]} 2. d4 {[%clk 0:03:00.3]}
2... d5 {[%clk 0:03:00.4]} 3. Nc3 {[%clk 0:03:00.5]} 3... Nf6 {[%clk 0:02:47.5]}
4. Bg5 {[%clk 0:02:59.9]} 4... Be7 {[%clk 0:02:45.8]} 5. e5 {[%clk 0:03:00.1]}
5... Nfd7 {[%clk 0:02:45.6]} 6. h4 {[%clk 0:03:00.8]} 6... h6 {[%clk 0:02:44.1]}
7. Bxe7 {[%clk 0:02:59.4]} 7... Qxe7 {[%clk 0:02:45]} 8. Qg4 {[%clk 0:02:58]}
8... O-O {[%clk 0:02:42.3]} 9. O-O-O {[%clk 0:02:57.4]} 9... c5 {[%clk
0:02:42.1]} 10. f4 {[%clk 0:02:24.4]} 10... cxd4 {[%clk 0:02:38.9]} 11. Nb5
{[%clk 0:02:23.4]} 11... Nc6 {[%clk 0:02:39.8]} 12. Rh3 {[%clk 0:02:16.6]} 12...
f5 {[%clk 0:02:26.6]} 13. Qg6 {[%clk 0:02:08]} 13... Nc5 {[%clk 0:02:07]} 14.
Rg3 {[%clk 0:01:58.4]} 14... Kh8 {[%clk 0:02:03.1]} 15. Nf3 {[%clk 0:01:52.8]}
15... Qf7 {[%clk 0:01:20]} 16. Qxf7 {[%clk 0:01:17.2]} 16... Rxf7 {[%clk
0:01:20.9]} 17. Nfxd4 {[%clk 0:01:11.4]} 17... Ne4 {[%clk 0:01:20.5]} 18. Ra3
{[%clk 0:01:02.8]} 18... Bd7 {[%clk 0:01:08.9]} 19. Nxc6 {[%clk 0:00:14]} 19...
bxc6 {[%clk 0:01:09.8]} 20. Nc7 {[%clk 0:00:11.4]} 20... Rc8 {[%clk 0:01:06.4]}
21. Rxa7 {[%clk 0:00:11.9]} 21... Be8 {[%clk 0:01:04.9]} 22. Nb5 {[%clk
0:00:11.6]} 22... cxb5 {[%clk 0:01:04]} 23. Rxf7 {[%clk 0:00:10.7]} 23... Bxf7
{[%clk 0:01:04.9]} 24. Bxb5 {[%clk 0:00:10.5]} 24... g5 {[%clk 0:01:04.1]} 25.
a4 {[%clk 0:00:11.2]} 25... gxf4 {[%clk 0:01:03.9]} 26. a5 {[%clk 0:00:11.3]}
26... Rc5 {[%clk 0:01:02.4]} 27. c4 {[%clk 0:00:09.3]} 27... dxc4 {[%clk
0:00:57.7]} 28. Rd8+ {[%clk 0:00:09.2]} 28... Kg7 {[%clk 0:00:57.3]} 29. Rd7
{[%clk 0:00:09.8]} 29... Rxb5 {[%clk 0:00:57.1]} 30. a6 {[%clk 0:00:09.1]} 30...
c3 {[%clk 0:00:57.3]} 31. a7 {[%clk 0:00:08.5]} 31... c2 {[%clk 0:00:57]} 32.
a8=Q {[%clk 0:00:06.4]} 32... Rd5 {[%clk 0:00:51.7]} 33. Qa7 {[%clk 0:00:04.3]}
33... Rxd7 {[%clk 0:00:50.5]} 34. Qxd7 {[%clk 0:00:03.3]} 34... Kg6 {[%clk
0:00:51.4]} 35. Kxc2 {[%clk 0:00:03.7]} 35... Ng3 {[%clk 0:00:45.9]} 36. b4
{[%clk 0:00:03.6]} 36... Nf1 {[%clk 0:00:41.3]} 37. Qe7 {[%clk 0:00:03.3]} 37...
Ne3+ {[%clk 0:00:42.2]} 38. Kb3 {[%clk 0:00:03.2]} 38... Nd5 {[%clk 0:00:42.3]}
39. Qd8 {[%clk 0:00:01.7]} 39... f3 {[%clk 0:00:42.8]} 40. b5 {[%clk 0:00:02]}
40... fxg2 {[%clk 0:00:43]} 0-1

[Event "*** SCC Grand Prix: Titled Tuesday Blitz"]
[Site "Chess.com"]
[Date "2020.09.29"]
[Round "5"]
[White "ChessWarrior7197"]
[Black "youngKID"]
[Result "1-0"]
[WhiteElo "2953"]
[BlackElo "2770"]
[TimeControl "180+1"]
[EndTime "10:54:58 PDT"]
[Termination "ChessWarrior7197 won by resignation"]

1. e4 {[%clk 0:03:00.9]} 1... c5 {[%clk 0:03:00.1]} 2. Nf3 {[%clk 0:03:00.6]}
2... Nc6 {[%clk 0:03:00.5]} 3. Bb5 {[%clk 0:02:59.5]} 3... g6 {[%clk 0:03:00.5]}
4. Bxc6 {[%clk 0:03:00.1]} 4... dxc6 {[%clk 0:03:00.7]} 5. d3 {[%clk 0:02:59.9]}
5... Bg4 {[%clk 0:03:00.7]} 6. Nbd2 {[%clk 0:02:57.5]} 6... Bg7 {[%clk
0:03:01.1]} 7. h3 {[%clk 0:02:57.9]} 7... Bxf3 {[%clk 0:03:01.6]} 8. Nxf3 {[%clk
0:02:58.8]} 8... Nf6 {[%clk 0:03:01.7]} 9. O-O {[%clk 0:02:59]} 9... O-O {[%clk
0:03:01.1]} 10. a4 {[%clk 0:02:54.4]} 10... a5 {[%clk 0:03:00.8]} 11. Be3 {[%clk
0:02:53]} 11... Nd7 {[%clk 0:02:58.7]} 12. Qd2 {[%clk 0:02:50.5]} 12... Re8
{[%clk 0:02:45.8]} 13. Nh2 {[%clk 0:02:41.1]} 13... b6 {[%clk 0:02:42.1]} 14.
Rab1 {[%clk 0:02:36]} 14... Nf8 {[%clk 0:02:32.7]} 15. b3 {[%clk 0:02:34.8]}
15... e5 {[%clk 0:02:27.4]} 16. Bh6 {[%clk 0:02:32]} 16... Ne6 {[%clk
0:02:14.4]} 17. Ng4 {[%clk 0:02:30.4]} 17... Bxh6 {[%clk 0:01:55]} 18. Qxh6
{[%clk 0:02:31.3]} 18... f6 {[%clk 0:01:54.9]} 19. g3 {[%clk 0:02:19.4]} 19...
Ra7 {[%clk 0:01:31]} 20. Kg2 {[%clk 0:02:07.3]} 20... Rg7 {[%clk 0:01:22.1]} 21.
Rbe1 {[%clk 0:02:06.1]} 21... Rf8 {[%clk 0:01:10.5]} 22. Qd2 {[%clk 0:02:04.3]}
22... h6 {[%clk 0:01:06.3]} 23. Nxh6+ {[%clk 0:02:01.7]} 23... Kh7 {[%clk
0:01:05.6]} 24. Ng4 {[%clk 0:02:02.6]} 24... Kg8 {[%clk 0:01:03.3]} 25. h4
{[%clk 0:01:57.5]} 25... Qd7 {[%clk 0:01:00.5]} 26. Ne3 {[%clk 0:01:56.7]} 26...
Nd4 {[%clk 0:00:55.5]} 27. Nc4 {[%clk 0:01:53.6]} 27... Qc7 {[%clk 0:00:52]} 28.
f4 {[%clk 0:01:49.3]} 28... exf4 {[%clk 0:00:45.2]} 29. Rxf4 {[%clk 0:01:50.2]}
29... f5 {[%clk 0:00:42.3]} 30. Ref1 {[%clk 0:01:37.6]} 30... Re8 {[%clk
0:00:39.4]} 31. c3 {[%clk 0:01:32.2]} 31... Ne6 {[%clk 0:00:39.7]} 32. R4f3
{[%clk 0:01:27.9]} 32... fxe4 {[%clk 0:00:39.2]} 33. dxe4 {[%clk 0:01:28.8]}
33... b5 {[%clk 0:00:35.3]} 34. Nd6 {[%clk 0:01:24.3]} 34... Rd8 {[%clk
0:00:23.1]} 35. e5 {[%clk 0:01:24.7]} 35... c4 {[%clk 0:00:23.7]} 36. Rf6 {[%clk
0:01:15.3]} 36... Nc5 {[%clk 0:00:22.1]} 37. Qh6 {[%clk 0:01:09.4]} 37... cxb3
{[%clk 0:00:19.4]} 38. Rxg6 {[%clk 0:01:06.8]} 38... b2 {[%clk 0:00:16.7]} 39.
Nf5 {[%clk 0:01:01.4]} 39... Rd2+ {[%clk 0:00:07.1]} 40. Kh3 {[%clk 0:01:00.4]}
40... Rd7 {[%clk 0:00:07.3]} 41. e6 {[%clk 0:00:51.6]} 41... Nxe6 {[%clk
0:00:06.5]} 42. Rxe6 {[%clk 0:00:52.5]} 1-0

[Event "*** SCC Grand Prix: Titled Tuesday Blitz"]
[Site "Chess.com"]
[Date "2020.09.29"]
[Round "5"]
[White "Makswolf200817"]
[Black "QuintilianoR"]
[Result "0-1"]
[WhiteElo "2433"]
[BlackElo "2625"]
[TimeControl "180+1"]
[EndTime "10:54:58 PDT"]
[Termination "QuintilianoR won by checkmate"]

1. d4 {[%clk 0:03:00.9]} 1... Nf6 {[%clk 0:02:58.8]} 2. c4 {[%clk 0:03:00.8]}
2... e6 {[%clk 0:02:58.9]} 3. Nf3 {[%clk 0:03:00.7]} 3... b6 {[%clk 0:02:57.7]}
4. g3 {[%clk 0:02:59.9]} 4... Bb7 {[%clk 0:02:57.4]} 5. Bg2 {[%clk 0:02:59.2]}
5... Bb4+ {[%clk 0:02:56.4]} 6. Bd2 {[%clk 0:02:56.6]} 6... a5 {[%clk
0:02:55.8]} 7. O-O {[%clk 0:02:55.8]} 7... O-O {[%clk 0:02:54.5]} 8. Nc3 {[%clk
0:02:53.8]} 8... d6 {[%clk 0:02:52.5]} 9. a3 {[%clk 0:02:53.6]} 9... Bxc3 {[%clk
0:02:51.5]} 10. Bxc3 {[%clk 0:02:54.5]} 10... Be4 {[%clk 0:02:47.4]} 11. Qd2
{[%clk 0:02:46.9]} 11... Nbd7 {[%clk 0:02:46.7]} 12. b4 {[%clk 0:02:46.6]} 12...
axb4 {[%clk 0:02:36.1]} 13. axb4 {[%clk 0:02:46.2]} 13... b5 {[%clk 0:02:35.8]}
14. c5 {[%clk 0:02:37.2]} 14... Qb8 {[%clk 0:02:29.6]} 15. Rxa8 {[%clk
0:02:25.3]} 15... Qxa8 {[%clk 0:02:30.5]} 16. Ra1 {[%clk 0:02:24.8]} 16... Qb7
{[%clk 0:02:23.3]} 17. Qa2 {[%clk 0:02:19.3]} 17... Rb8 {[%clk 0:01:52.7]} 18.
Qa6 {[%clk 0:01:59.8]} 18... h6 {[%clk 0:01:21.5]} 19. cxd6 {[%clk 0:01:52.7]}
19... cxd6 {[%clk 0:01:19.2]} 20. Qxd6 {[%clk 0:01:49.6]} 20... Rc8 {[%clk
0:01:18.9]} 21. Bd2 {[%clk 0:01:47.5]} 21... Rc2 {[%clk 0:01:14.6]} 22. Qf4
{[%clk 0:01:32.6]} 22... g5 {[%clk 0:00:46.7]} 23. Qe3 {[%clk 0:01:25.2]} 23...
Ng4 {[%clk 0:00:34.9]} 24. Qb3 {[%clk 0:01:24.3]} 24... Qd5 {[%clk 0:00:29.7]}
25. Qxd5 {[%clk 0:01:04.3]} 25... Bxd5 {[%clk 0:00:30.6]} 26. Rd1 {[%clk
0:01:00.8]} 26... Rb2 {[%clk 0:00:24.1]} 27. h3 {[%clk 0:00:56.8]} 27... Ngf6
{[%clk 0:00:23.5]} 28. Kf1 {[%clk 0:00:57.2]} 28... Bb3 {[%clk 0:00:17.5]} 29.
Rc1 {[%clk 0:00:55.6]} 29... Bc4 {[%clk 0:00:17.7]} 30. Ke1 {[%clk 0:00:36.9]}
30... Ne4 {[%clk 0:00:17.3]} 31. h4 {[%clk 0:00:30.5]} 31... g4 {[%clk
0:00:16.3]} 32. Ra1 {[%clk 0:00:19.6]} 32... gxf3 {[%clk 0:00:15.2]} 33. Bxf3
{[%clk 0:00:19.6]} 33... Nxd2 {[%clk 0:00:15.2]} 34. Bc6 {[%clk 0:00:19.3]}
34... Nf6 {[%clk 0:00:14.4]} 35. Ra8+ {[%clk 0:00:20.2]} 35... Kg7 {[%clk
0:00:14.1]} 36. e3 {[%clk 0:00:20.4]} 36... Nb3 {[%clk 0:00:14]} 37. Rb8 {[%clk
0:00:19.5]} 37... Rb1# {[%clk 0:00:14]} 0-1

[Event "*** SCC Grand Prix: Titled Tuesday Blitz"]
[Site "Chess.com"]
[Date "2020.09.29"]
[Round "5"]
[White "PawnEatingZombie"]
[Black "isainz"]
[Result "0-1"]
[WhiteElo "2213"]
[BlackElo "2023"]
[TimeControl "180+1"]
[EndTime "10:54:59 PDT"]
[Termination "isainz won on time"]

1. d4 {[%clk 0:03:00.9]} 1... Nf6 {[%clk 0:02:58.9]} 2. c4 {[%clk 0:03:00.6]}
2... g6 {[%clk 0:02:58.1]} 3. Nc3 {[%clk 0:03:01]} 3... Bg7 {[%clk 0:02:56.7]}
4. e4 {[%clk 0:03:00.7]} 4... d6 {[%clk 0:02:56.9]} 5. Be2 {[%clk 0:03:01.2]}
5... O-O {[%clk 0:02:56.3]} 6. Be3 {[%clk 0:03:01.7]} 6... e5 {[%clk 0:02:37.6]}
7. d5 {[%clk 0:03:00.6]} 7... a5 {[%clk 0:02:35.1]} 8. g4 {[%clk 0:03:00.3]}
8... Na6 {[%clk 0:02:30.9]} 9. h4 {[%clk 0:03:00]} 9... Nc5 {[%clk 0:02:27.4]}
10. f3 {[%clk 0:03:00]} 10... h5 {[%clk 0:02:19.6]} 11. g5 {[%clk 0:02:58.3]}
11... Nfd7 {[%clk 0:02:15.1]} 12. Qd2 {[%clk 0:02:56.8]} 12... a4 {[%clk
0:02:11]} 13. O-O-O {[%clk 0:02:54.6]} 13... c6 {[%clk 0:02:06.3]} 14. Kb1
{[%clk 0:02:53.5]} 14... Qa5 {[%clk 0:02:00.5]} 15. Nh3 {[%clk 0:02:43.8]} 15...
Re8 {[%clk 0:01:53.2]} 16. Nf2 {[%clk 0:02:35.5]} 16... Bf8 {[%clk 0:01:49.6]}
17. Nd3 {[%clk 0:02:01.3]} 17... Nxd3 {[%clk 0:01:46.3]} 18. Qxd3 {[%clk
0:01:50.8]} 18... a3 {[%clk 0:01:41.4]} 19. b3 {[%clk 0:01:49.9]} 19... Nc5
{[%clk 0:01:38.2]} 20. Qd2 {[%clk 0:01:47]} 20... Bd7 {[%clk 0:01:35.5]} 21.
Rhf1 {[%clk 0:01:27.7]} 21... Bh3 {[%clk 0:01:31]} 22. Rf2 {[%clk 0:01:24.4]}
22... Rec8 {[%clk 0:01:27.6]} 23. f4 {[%clk 0:01:12.3]} 23... cxd5 {[%clk
0:01:24.8]} 24. Nxd5 {[%clk 0:01:06.7]} 24... Nxe4 {[%clk 0:01:21.3]} 25. Qxa5
{[%clk 0:01:05.9]} 25... Rxa5 {[%clk 0:01:16.8]} 26. Rh2 {[%clk 0:01:03.3]}
26... Be6 {[%clk 0:01:11.5]} 27. Rd3 {[%clk 0:00:17.1]} 27... Bxd5 {[%clk
0:00:54.1]} 28. cxd5 {[%clk 0:00:18]} 28... exf4 {[%clk 0:00:47.5]} 29. Bxf4
{[%clk 0:00:17.5]} 29... Rxd5 {[%clk 0:00:44.7]} 30. Rxd5 {[%clk 0:00:15.5]}
30... Nc3+ {[%clk 0:00:44.6]} 31. Ka1 {[%clk 0:00:16]} 31... Nxd5 {[%clk
0:00:44.6]} 32. Bd2 {[%clk 0:00:16.3]} 32... Rc2 {[%clk 0:00:43]} 33. Bc4 {[%clk
0:00:16.1]} 33... Nb4 {[%clk 0:00:37.9]} 34. Rf2 {[%clk 0:00:07.8]} 34... Rxa2+
{[%clk 0:00:36.8]} 35. Kb1 {[%clk 0:00:07.3]} 35... Rb2+ {[%clk 0:00:36.2]} 36.
Kc1 {[%clk 0:00:04.5]} 36... Na2+ {[%clk 0:00:31.4]} 37. Kd1 {[%clk 0:00:04.1]}
37... Nc3+ {[%clk 0:00:24.7]} 38. Bxc3 {[%clk 0:00:01.4]} 38... Rxf2 {[%clk
0:00:24.1]} 0-1

[Event "*** SCC Grand Prix: Titled Tuesday Blitz"]
[Site "Chess.com"]
[Date "2020.09.29"]
[Round "5"]
[White "Vamostodorecto"]
[Black "artichaud"]
[Result "1-0"]
[WhiteElo "2389"]
[BlackElo "2203"]
[TimeControl "180+1"]
[EndTime "10:55:00 PDT"]
[Termination "Vamostodorecto won on time"]

1. d4 {[%clk 0:02:57.7]} 1... d6 {[%clk 0:02:59.6]} 2. c4 {[%clk 0:02:58]} 2...
e5 {[%clk 0:02:58.1]} 3. Nf3 {[%clk 0:02:58.4]} 3... Nd7 {[%clk 0:02:55.2]} 4.
Nc3 {[%clk 0:02:57.3]} 4... c6 {[%clk 0:02:54.2]} 5. e4 {[%clk 0:02:57.4]} 5...
Be7 {[%clk 0:02:53.1]} 6. Be2 {[%clk 0:02:57.3]} 6... Ngf6 {[%clk 0:02:51.6]} 7.
O-O {[%clk 0:02:57.3]} 7... Qc7 {[%clk 0:02:45.2]} 8. h3 {[%clk 0:02:54.6]} 8...
Nf8 {[%clk 0:02:45.1]} 9. Be3 {[%clk 0:02:54.1]} 9... Ng6 {[%clk 0:02:44.8]} 10.
Qd2 {[%clk 0:02:47.7]} 10... Nh5 {[%clk 0:02:37.6]} 11. Nxe5 {[%clk 0:02:40.9]}
11... dxe5 {[%clk 0:02:16.9]} 12. Bxh5 {[%clk 0:02:38.9]} 12... exd4 {[%clk
0:02:15.4]} 13. Bxd4 {[%clk 0:02:28]} 13... Nf4 {[%clk 0:02:09.4]} 14. Bf3
{[%clk 0:02:11.1]} 14... O-O {[%clk 0:02:06.6]} 15. e5 {[%clk 0:02:08.1]} 15...
Ne6 {[%clk 0:01:57.2]} 16. Be3 {[%clk 0:01:37.4]} 16... Qxe5 {[%clk 0:01:54.3]}
17. Rfe1 {[%clk 0:01:36.9]} 17... Qc7 {[%clk 0:01:50.8]} 18. Bg4 {[%clk
0:01:34.6]} 18... Rd8 {[%clk 0:01:49.1]} 19. Qe2 {[%clk 0:01:33.7]} 19... Bb4
{[%clk 0:01:34.2]} 20. Red1 {[%clk 0:01:28.2]} 20... Bd7 {[%clk 0:01:18.8]} 21.
Rac1 {[%clk 0:01:24.5]} 21... Re8 {[%clk 0:01:06.7]} 22. Nd5 {[%clk 0:01:23.4]}
22... cxd5 {[%clk 0:00:59.2]} 23. cxd5 {[%clk 0:01:22.4]} 23... Nf4 {[%clk
0:00:53.7]} 24. Rxc7 {[%clk 0:01:13.9]} 24... Nxe2+ {[%clk 0:00:53.1]} 25. Bxe2
{[%clk 0:01:14.8]} 25... Bf5 {[%clk 0:00:43.9]} 26. Rxb7 {[%clk 0:01:07.9]}
26... a5 {[%clk 0:00:43.9]} 27. Bb5 {[%clk 0:00:59.9]} 27... Reb8 {[%clk
0:00:38.2]} 28. Rxb8+ {[%clk 0:00:53.9]} 28... Rxb8 {[%clk 0:00:39.1]} 29. Bc6
{[%clk 0:00:54.2]} 29... Bd6 {[%clk 0:00:36.1]} 30. b3 {[%clk 0:00:49.7]} 30...
Kf8 {[%clk 0:00:31.3]} 31. Re1 {[%clk 0:00:47.6]} 31... h5 {[%clk 0:00:23.2]}
32. Ba7 {[%clk 0:00:47.7]} 32... Rc8 {[%clk 0:00:17.1]} 33. Bb6 {[%clk
0:00:47.4]} 33... Bb4 {[%clk 0:00:13.6]} 34. Rd1 {[%clk 0:00:43.4]} 34... Bc2
{[%clk 0:00:12.2]} 35. Rd4 {[%clk 0:00:28.5]} 1-0

[Event "*** SCC Grand Prix: Titled Tuesday Blitz"]
[Site "Chess.com"]
[Date "2020.09.29"]
[Round "5"]
[White "Herracek"]
[Black "dyziotomi99"]
[Result "1/2-1/2"]
[WhiteElo "2625"]
[BlackElo "2463"]
[TimeControl "180+1"]
[EndTime "10:55:01 PDT"]
[Termination "Game drawn by repetition"]

1. c4 {[%clk 0:03:00.9]} 1... e5 {[%clk 0:02:58.6]} 2. g3 {[%clk 0:03:00.9]}
2... Nc6 {[%clk 0:02:58.3]} 3. Bg2 {[%clk 0:03:01.3]} 3... Bc5 {[%clk
0:02:58.1]} 4. Nf3 {[%clk 0:03:01.3]} 4... d6 {[%clk 0:02:58.2]} 5. e3 {[%clk
0:03:00.8]} 5... a6 {[%clk 0:02:57.9]} 6. d4 {[%clk 0:02:59.6]} 6... exd4 {[%clk
0:02:52.5]} 7. exd4 {[%clk 0:03:00.5]} 7... Ba7 {[%clk 0:02:52.8]} 8. O-O {[%clk
0:02:59.7]} 8... Nge7 {[%clk 0:02:50.5]} 9. Nc3 {[%clk 0:02:58.7]} 9... O-O
{[%clk 0:02:50.1]} 10. h3 {[%clk 0:02:52.1]} 10... Bf5 {[%clk 0:02:42.4]} 11.
Re1 {[%clk 0:02:45.4]} 11... Bg6 {[%clk 0:02:39.5]} 12. d5 {[%clk 0:02:34.4]}
12... Nb8 {[%clk 0:02:35.5]} 13. Bg5 {[%clk 0:02:31]} 13... Re8 {[%clk
0:02:28.2]} 14. Qb3 {[%clk 0:02:25.4]} 14... b6 {[%clk 0:02:17.8]} 15. Nd4
{[%clk 0:02:17.4]} 15... h6 {[%clk 0:02:08.3]} 16. Bh4 {[%clk 0:02:15.8]} 16...
Qd7 {[%clk 0:02:06.2]} 17. Re3 {[%clk 0:02:00.1]} 17... b5 {[%clk 0:01:57.5]}
18. Rxe7 {[%clk 0:01:49]} 18... Rxe7 {[%clk 0:01:54.8]} 19. Bxe7 {[%clk
0:01:49.9]} 19... Qxe7 {[%clk 0:01:52.4]} 20. Nde2 {[%clk 0:01:41.5]} 20... Nd7
{[%clk 0:01:41]} 21. cxb5 {[%clk 0:01:39.6]} 21... Nc5 {[%clk 0:01:41]} 22. Qa3
{[%clk 0:01:33.7]} 22... Nd3 {[%clk 0:01:36.1]} 23. bxa6 {[%clk 0:01:11.1]}
23... Nxf2 {[%clk 0:01:28.7]} 24. Kh2 {[%clk 0:01:08.4]} 24... Bc5 {[%clk
0:01:20.3]} 25. Qa4 {[%clk 0:00:56.8]} 25... Nd3 {[%clk 0:01:09.6]} 26. Qc6
{[%clk 0:00:52.6]} 26... Rb8 {[%clk 0:00:50.6]} 27. Na4 {[%clk 0:00:38.1]} 27...
Qxe2 {[%clk 0:00:38.2]} 28. Nxc5 {[%clk 0:00:38.1]} 28... Nxc5 {[%clk
0:00:19.2]} 29. a7 {[%clk 0:00:34.1]} 29... Rxb2 {[%clk 0:00:18.9]} 30. a8=Q+
{[%clk 0:00:34.3]} 30... Kh7 {[%clk 0:00:19.4]} 31. Rg1 {[%clk 0:00:34.6]} 31...
Be4 {[%clk 0:00:19.4]} 32. Qc8 {[%clk 0:00:17.6]} 32... Qxg2+ {[%clk 0:00:14.8]}
33. Rxg2 {[%clk 0:00:17.5]} 33... Rxg2+ {[%clk 0:00:15.1]} 34. Kh1 {[%clk
0:00:18]} 34... Rxg3+ {[%clk 0:00:15.1]} 35. Kh2 {[%clk 0:00:18.5]} 35... Rg2+
{[%clk 0:00:15.6]} 36. Kh1 {[%clk 0:00:19.1]} 36... Rg3+ {[%clk 0:00:16.2]} 37.
Kh2 {[%clk 0:00:18.9]} 37... Rg2+ {[%clk 0:00:16.8]} 38. Kh1 {[%clk 0:00:19.4]}
38... Rg3+ {[%clk 0:00:17.3]} 1/2-1/2